[Event "*** Titled Tuesday Blitz"]
[Site "Chess.com"]
[Date "2018.06.05"]
[Round "6"]
[White "bascheyaro"]
[Black "RiskyDecision"]
[Result "1/2-1/2"]
[WhiteElo "2663"]
[BlackElo "2514"]
[TimeControl "180+2"]
[EndTime "14:32:35 PDT"]
[Termination "Game drawn by agreement"]

1. d4 {[%clk 0:03:01.9]} 1... Nf6 {[%clk 0:03:00]} 2. Nf3 {[%clk 0:03:02.3]}
2... d5 {[%clk 0:03:00.5]} 3. Bf4 {[%clk 0:03:03.3]} 3... c5 {[%clk 0:03:00.2]}
4. e3 {[%clk 0:03:04]} 4... Nc6 {[%clk 0:02:51.9]} 5. Be2 {[%clk 0:03:04.9]}
5... cxd4 {[%clk 0:02:48.6]} 6. exd4 {[%clk 0:03:06.8]} 6... Bf5 {[%clk
0:02:40.5]} 7. O-O {[%clk 0:03:03.6]} 7... e6 {[%clk 0:02:39.9]} 8. c3 {[%clk
0:03:01.4]} 8... Bd6 {[%clk 0:02:39.4]} 9. Bxd6 {[%clk 0:03:00.7]} 9... Qxd6
{[%clk 0:02:40.1]} 10. Nbd2 {[%clk 0:02:58.3]} 10... h6 {[%clk 0:02:36.2]} 11.
Bb5 {[%clk 0:02:55.7]} 11... O-O {[%clk 0:02:35.1]} 12. Re1 {[%clk 0:02:53.6]}
12... Ne7 {[%clk 0:02:18.7]} 13. Ne5 {[%clk 0:02:53.7]} 13... a6 {[%clk
0:02:19.4]} 14. Bd3 {[%clk 0:02:54.3]} 14... b5 {[%clk 0:02:08.1]} 15. a3 {[%clk
0:02:47.2]} 15... Qb6 {[%clk 0:01:58.8]} 16. Nb3 {[%clk 0:02:45.4]} 16... Bxd3
{[%clk 0:01:52]} 17. Qxd3 {[%clk 0:02:46]} 17... Nf5 {[%clk 0:01:46.7]} 18. Nc5
{[%clk 0:02:45.1]} 18... Rfc8 {[%clk 0:01:38.5]} 19. b4 {[%clk 0:02:37.9]} 19...
Nd6 {[%clk 0:01:37.9]} 20. a4 {[%clk 0:02:36.7]} 20... a5 {[%clk 0:01:30.1]} 21.
bxa5 {[%clk 0:02:33.1]} 21... Qxa5 {[%clk 0:01:23.6]} 22. f3 {[%clk 0:02:24.8]}
22... bxa4 {[%clk 0:01:20.1]} 23. Rxa4 {[%clk 0:02:23.9]} 23... Qb5 {[%clk
0:01:21.2]} 24. Rxa8 {[%clk 0:02:10.7]} 24... Rxa8 {[%clk 0:01:21.4]} 25. Qc2
{[%clk 0:02:06.8]} 25... Rb8 {[%clk 0:01:14.8]} 26. g4 {[%clk 0:02:04]} 26...
Nc4 {[%clk 0:01:13.9]} 27. Ned3 {[%clk 0:01:52.6]} 27... Nd7 {[%clk 0:01:01.7]}
28. Nxd7 {[%clk 0:01:43.8]} 28... Qxd7 {[%clk 0:01:02.1]} 29. Nc5 {[%clk
0:01:43.2]} 29... Qd6 {[%clk 0:00:55.8]} 30. Nd3 {[%clk 0:01:32.4]} 30... Qa3
{[%clk 0:00:49]} 31. Kf2 {[%clk 0:01:22]} 31... Nb2 {[%clk 0:00:40.6]} 32. Kg3
{[%clk 0:01:18.9]} 32... Nxd3 {[%clk 0:00:38.5]} 33. Qxd3 {[%clk 0:01:20.8]}
33... Rb3 {[%clk 0:00:35.2]} 34. Re3 {[%clk 0:01:19.2]} 34... Qa2 {[%clk
0:00:32.7]} 35. Re2 {[%clk 0:01:15.7]} 35... Rxc3 {[%clk 0:00:25.9]} 36. Qxc3
{[%clk 0:01:03.1]} 36... Qxe2 {[%clk 0:00:26.4]} 37. h4 {[%clk 0:01:03.3]} 37...
Qd1 {[%clk 0:00:23.8]} 38. h5 {[%clk 0:01:02.1]} 38... Qg1+ {[%clk 0:00:23.7]}
39. Kh3 {[%clk 0:01:03.4]} 39... Qd1 {[%clk 0:00:21.3]} 40. Kg3 {[%clk
0:01:04.5]} 40... Qg1+ {[%clk 0:00:20.1]} 41. Kh3 {[%clk 0:01:05.6]} 41... Qb1
{[%clk 0:00:21.6]} 42. Kg3 {[%clk 0:01:06.1]} 42... Kh7 {[%clk 0:00:22.2]} 43.
Kg2 {[%clk 0:01:03.1]} 43... g6 {[%clk 0:00:22.5]} 44. hxg6+ {[%clk 0:01:03.3]}
44... Kxg6 {[%clk 0:00:23.7]} 45. Qe3 {[%clk 0:01:04.3]} 45... Qc2+ {[%clk
0:00:22.2]} 46. Kg3 {[%clk 0:01:05.3]} 46... Qb1 {[%clk 0:00:19.6]} 47. Kg2
{[%clk 0:01:05.6]} 47... Qc2+ {[%clk 0:00:17.2]} 48. Kg3 {[%clk 0:01:06.4]}
48... Kg7 {[%clk 0:00:17.7]} 49. Qe5+ {[%clk 0:01:06.3]} 49... Kh7 {[%clk
0:00:17.2]} 50. Qf6 {[%clk 0:01:06.7]} 50... Qg6 {[%clk 0:00:17.9]} 51. Qe7
{[%clk 0:01:07.2]} 51... Qg7 {[%clk 0:00:18.1]} 52. Qc5 {[%clk 0:01:07.8]} 52...
h5 {[%clk 0:00:18.8]} 53. Qc2+ {[%clk 0:01:06.8]} 53... Qg6 {[%clk 0:00:18.3]}
54. Qh2 {[%clk 0:01:07.6]} 54... Kh6 {[%clk 0:00:19.3]} 55. Qd2+ {[%clk
0:00:46.7]} 55... Qg5 {[%clk 0:00:18.4]} 56. Qe1 {[%clk 0:00:42.7]} 56... hxg4
{[%clk 0:00:16.3]} 57. fxg4 {[%clk 0:00:43.4]} 57... Kg6 {[%clk 0:00:15.7]} 58.
Qb1+ {[%clk 0:00:43.4]} 58... f5 {[%clk 0:00:14.8]} 59. Qb6 {[%clk 0:00:22.4]}
59... Qxg4+ {[%clk 0:00:15.6]} 60. Kf2 {[%clk 0:00:23.8]} 60... Qf4+ {[%clk
0:00:16]} 61. Ke2 {[%clk 0:00:25]} 61... Qe4+ {[%clk 0:00:17.1]} 62. Kf2 {[%clk
0:00:25.5]} 62... f4 {[%clk 0:00:12.7]} 63. Qa7 {[%clk 0:00:24.1]} 63... Qe3+
{[%clk 0:00:12.9]} 64. Kf1 {[%clk 0:00:25.5]} 64... f3 {[%clk 0:00:13]} 65. Qf7+
{[%clk 0:00:25.7]} 65... Kg5 {[%clk 0:00:09.5]} 66. Qh5+ {[%clk 0:00:25.2]}
66... Kf4 {[%clk 0:00:07.1]} 67. Qh6+ {[%clk 0:00:25.9]} 67... Ke4 {[%clk
0:00:08]} 68. Qxe6+ {[%clk 0:00:26.8]} 68... Kxd4 {[%clk 0:00:07.8]} 69. Qb6+
{[%clk 0:00:27.7]} 69... Ke4 {[%clk 0:00:08]} 70. Qg6+ {[%clk 0:00:27.6]} 70...
Kd4 {[%clk 0:00:07.4]} 71. Qb6+ {[%clk 0:00:24.6]} 71... Kd3 {[%clk 0:00:08.3]}
72. Qb1+ {[%clk 0:00:21.9]} 72... Kc4 {[%clk 0:00:07.3]} 73. Qb4+ {[%clk
0:00:21.5]} 73... Kd3 {[%clk 0:00:08.4]} 74. Qc3+ {[%clk 0:00:21.8]} 74... Ke4
{[%clk 0:00:07.4]} 75. Qe5+ {[%clk 0:00:23]} 75... Kd3 {[%clk 0:00:08]} 76.
Qxd5+ {[%clk 0:00:24.5]} 76... Kc3 {[%clk 0:00:07.2]} 77. Qc6+ {[%clk
0:00:24.6]} 77... Kd2 {[%clk 0:00:06.3]} 78. Qc1+ {[%clk 0:00:18.5]} 78... Kd3
{[%clk 0:00:05.6]} 79. Qc3+ {[%clk 0:00:19.2]} 79... Ke4 {[%clk 0:00:06.3]} 80.
Qe5+ {[%clk 0:00:20.4]} 80... Kd3 {[%clk 0:00:06.8]} 81. Qb5+ {[%clk 0:00:21.6]}
81... Kd4 {[%clk 0:00:07.5]} 82. Qb4+ {[%clk 0:00:21.8]} 82... Ke5 {[%clk
0:00:07.3]} 83. Qe7+ {[%clk 0:00:22.3]} 83... Kf4 {[%clk 0:00:08.3]} 84. Qf6+
{[%clk 0:00:22.9]} 84... Ke4 {[%clk 0:00:09.3]} 85. Qe6+ {[%clk 0:00:24]} 85...
Kd3 {[%clk 0:00:10.3]} 86. Qd5+ {[%clk 0:00:25.2]} 86... Kc3 {[%clk 0:00:09.9]}
87. Qb3+ {[%clk 0:00:25.6]} 87... Kd2 {[%clk 0:00:09.5]} 88. Qb2+ {[%clk
0:00:26.2]} 88... Kd3 {[%clk 0:00:10.4]} 89. Qb1+ {[%clk 0:00:27.4]} 89... Kd4
{[%clk 0:00:11.3]} 90. Qb6+ {[%clk 0:00:28]} 90... Ke4 {[%clk 0:00:12.4]} 91.
Qc6+ {[%clk 0:00:29]} 91... Kd4 {[%clk 0:00:10.6]} 92. Qd6+ {[%clk 0:00:29.1]}
92... Ke4 {[%clk 0:00:11.1]} 93. Qe7+ {[%clk 0:00:28.7]} 93... Kd3 {[%clk
0:00:11.2]} 94. Qa3+ {[%clk 0:00:29.3]} 94... Ke4 {[%clk 0:00:11]} 95. Qa8+
{[%clk 0:00:28.8]} 95... Kf4 {[%clk 0:00:10.5]} 96. Qf8+ {[%clk 0:00:29.1]}
96... Ke4 {[%clk 0:00:11]} 97. Qe7+ {[%clk 0:00:29.5]} 97... Kd3 {[%clk
0:00:11.4]} 1/2-1/2

[Event "*** Titled Tuesday Blitz"]
[Site "Chess.com"]
[Date "2018.06.05"]
[Round "7"]
[White "Arash-Tiger"]
[Black "petrpalachev"]
[Result "0-1"]
[WhiteElo "2786"]
[BlackElo "2719"]
[TimeControl "180+2"]
[EndTime "14:34:43 PDT"]
[Termination "petrpalachev won by resignation"]

1. e4 {[%clk 0:03:01.9]} 1... c5 {[%clk 0:03:00.9]} 2. Nf3 {[%clk 0:03:01.1]}
2... Nc6 {[%clk 0:03:02.4]} 3. d4 {[%clk 0:03:01.6]} 3... cxd4 {[%clk
0:03:04.3]} 4. Nxd4 {[%clk 0:03:01.8]} 4... g6 {[%clk 0:03:05.8]} 5. c4 {[%clk
0:03:02]} 5... Nf6 {[%clk 0:03:06.4]} 6. Nc3 {[%clk 0:03:01.6]} 6... Nxd4 {[%clk
0:03:07.9]} 7. Qxd4 {[%clk 0:03:01.4]} 7... d6 {[%clk 0:03:09.8]} 8. Be3 {[%clk
0:03:02.4]} 8... Bg7 {[%clk 0:03:10.8]} 9. f3 {[%clk 0:02:57.1]} 9... O-O {[%clk
0:03:11.7]} 10. Qd2 {[%clk 0:02:59]} 10... a5 {[%clk 0:03:12.6]} 11. b3 {[%clk
0:02:59.2]} 11... Be6 {[%clk 0:03:09.6]} 12. Rc1 {[%clk 0:02:56.9]} 12... Nd7
{[%clk 0:03:06.2]} 13. Be2 {[%clk 0:02:58.3]} 13... Nc5 {[%clk 0:03:01.7]} 14.
O-O {[%clk 0:02:59.3]} 14... Qb6 {[%clk 0:02:58.8]} 15. Nd5 {[%clk 0:02:59.7]}
15... Bxd5 {[%clk 0:02:59.6]} 16. cxd5 {[%clk 0:02:59.9]} 16... Qb4 {[%clk
0:02:47.4]} 17. Rfd1 {[%clk 0:02:58.7]} 0-1

[Event "*** Titled Tuesday Blitz"]
[Site "Chess.com"]
[Date "2018.06.05"]
[Round "7"]
[White "GMCanty"]
[Black "VeraNebolsina"]
[Result "1-0"]
[WhiteElo "2202"]
[BlackElo "2321"]
[TimeControl "180+2"]
[EndTime "14:35:12 PDT"]
[Termination "GMCanty won by resignation"]

1. e4 {[%clk 0:03:01.6]} 1... c5 {[%clk 0:02:58.5]} 2. c3 {[%clk 0:03:01.2]}
2... Nf6 {[%clk 0:02:58.3]} 3. e5 {[%clk 0:02:58.1]} 3... Nd5 {[%clk 0:02:59]}
4. Nf3 {[%clk 0:02:59.4]} 4... d6 {[%clk 0:02:56.7]} 5. d4 {[%clk 0:02:59.7]}
5... cxd4 {[%clk 0:02:56.9]} 6. cxd4 {[%clk 0:03:01.4]} 6... Nc6 {[%clk
0:02:53.1]} 7. Nc3 {[%clk 0:03:00.2]} 7... Nxc3 {[%clk 0:02:50.4]} 8. bxc3
{[%clk 0:03:01.6]} 8... dxe5 {[%clk 0:02:51.2]} 9. d5 {[%clk 0:03:02.7]} 9...
Na5 {[%clk 0:02:44.1]} 10. Bb5+ {[%clk 0:02:56.2]} 10... Bd7 {[%clk 0:02:43.9]}
11. Qa4 {[%clk 0:02:51.5]} 1-0

[Event "*** Titled Tuesday Blitz"]
[Site "Chess.com"]
[Date "2018.06.05"]
[Round "7"]
[White "NDePinEsPeRG"]
[Black "Aleksandr_Kholin"]
[Result "1-0"]
[WhiteElo "2631"]
[BlackElo "2430"]
[TimeControl "180+2"]
[EndTime "14:36:09 PDT"]
[Termination "NDePinEsPeRG won by resignation"]

1. d4 {[%clk 0:03:01.9]} 1... Nf6 {[%clk 0:02:59]} 2. Bf4 {[%clk 0:03:02]} 2...
g6 {[%clk 0:03:00.3]} 3. Nc3 {[%clk 0:03:02.3]} 3... Bg7 {[%clk 0:03:00.6]} 4.
Qd2 {[%clk 0:03:02.7]} 4... d5 {[%clk 0:02:59.8]} 5. Bh6 {[%clk 0:03:01.5]} 5...
O-O {[%clk 0:02:55.3]} 6. h4 {[%clk 0:03:00.5]} 6... Bxh6 {[%clk 0:02:54.2]} 7.
Qxh6 {[%clk 0:03:00.9]} 7... Nc6 {[%clk 0:02:50.9]} 8. Nf3 {[%clk 0:02:50.9]}
8... Ng4 {[%clk 0:02:47.5]} 9. Qd2 {[%clk 0:02:46.8]} 9... h5 {[%clk 0:02:49.4]}
10. e3 {[%clk 0:02:38.4]} 10... Bf5 {[%clk 0:02:43]} 11. a3 {[%clk 0:02:21.9]}
11... a6 {[%clk 0:02:41.6]} 12. Ng5 {[%clk 0:02:14.1]} 12... Qd6 {[%clk
0:02:33.5]} 13. O-O-O {[%clk 0:02:10.7]} 13... f6 {[%clk 0:02:20.3]} 14. Nh3
{[%clk 0:02:09.1]} 14... b6 {[%clk 0:02:11]} 15. f3 {[%clk 0:02:08.4]} 15... Nh6
{[%clk 0:02:01.9]} 16. e4 {[%clk 0:02:05.6]} 16... Bxh3 {[%clk 0:02:03.1]} 17.
Qxh6 {[%clk 0:02:05.9]} 1-0

[Event "*** Titled Tuesday Blitz"]
[Site "Chess.com"]
[Date "2018.06.05"]
[Round "7"]
[White "FranklinAPalomo"]
[Black "Jungle_Jaguar"]
[Result "1-0"]
[WhiteElo "2348"]
[BlackElo "2430"]
[TimeControl "180+2"]
[EndTime "14:36:19 PDT"]
[Termination "FranklinAPalomo won by resignation"]

1. Nf3 {[%clk 0:02:48]} 1... Nf6 {[%clk 0:02:59.5]} 2. c4 {[%clk 0:02:48.2]}
2... g6 {[%clk 0:03:00.3]} 3. g3 {[%clk 0:02:46.9]} 3... Bg7 {[%clk 0:03:01.8]}
4. Bg2 {[%clk 0:02:47.6]} 4... O-O {[%clk 0:02:59.6]} 5. O-O {[%clk 0:02:48.7]}
5... d6 {[%clk 0:02:54]} 6. d4 {[%clk 0:02:43.9]} 6... Nbd7 {[%clk 0:02:54.9]}
7. Nc3 {[%clk 0:02:43.5]} 7... c6 {[%clk 0:02:52.3]} 8. h3 {[%clk 0:02:44]} 8...
e5 {[%clk 0:02:52.7]} 9. e4 {[%clk 0:02:44.3]} 9... Qc7 {[%clk 0:02:52.7]} 10.
Re1 {[%clk 0:02:44.7]} 10... Rd8 {[%clk 0:02:53.5]} 11. Be3 {[%clk 0:02:43.6]}
11... Nf8 {[%clk 0:02:54.2]} 12. Qc2 {[%clk 0:02:43.7]} 12... Be6 {[%clk
0:02:54.7]} 13. b3 {[%clk 0:02:42.8]} 13... exd4 {[%clk 0:02:46.3]} 14. Nxd4
{[%clk 0:02:44.7]} 14... N6d7 {[%clk 0:02:45.4]} 15. Rad1 {[%clk 0:02:39.3]}
15... a5 {[%clk 0:02:42.7]} 16. Kh2 {[%clk 0:02:34.3]} 16... Nc5 {[%clk
0:02:43.6]} 17. f4 {[%clk 0:02:33]} 17... h5 {[%clk 0:02:38.7]} 18. Qf2 {[%clk
0:02:28.5]} 18... Qe7 {[%clk 0:02:17.3]} 19. e5 {[%clk 0:02:11.9]} 19... dxe5
{[%clk 0:02:16.6]} 20. Nxc6 {[%clk 0:02:12.6]} 20... bxc6 {[%clk 0:02:16.4]} 21.
Bxc5 {[%clk 0:02:14.1]} 21... Qc7 {[%clk 0:02:17.4]} 22. Bb6 {[%clk 0:02:12.8]}
1-0

[Event "*** Titled Tuesday Blitz"]
[Site "Chess.com"]
[Date "2018.06.05"]
[Round "7"]
[White "GMSrinath"]
[Black "grzechu96"]
[Result "1-0"]
[WhiteElo "2679"]
[BlackElo "2504"]
[TimeControl "180+2"]
[EndTime "14:36:44 PDT"]
[Termination "GMSrinath won by resignation"]

1. e4 {[%clk 0:03:01.9]} 1... c5 {[%clk 0:02:58.1]} 2. Nf3 {[%clk 0:02:59.7]}
2... d6 {[%clk 0:02:59.3]} 3. d4 {[%clk 0:03:01.2]} 3... cxd4 {[%clk 0:03:01.2]}
4. Nxd4 {[%clk 0:03:03]} 4... Nf6 {[%clk 0:03:02.2]} 5. Nc3 {[%clk 0:03:04.6]}
5... a6 {[%clk 0:03:03.3]} 6. h3 {[%clk 0:03:04.2]} 6... e6 {[%clk 0:03:01.1]}
7. g4 {[%clk 0:03:04.9]} 7... Nfd7 {[%clk 0:03:01.5]} 8. Bg2 {[%clk 0:03:05.6]}
8... Nc6 {[%clk 0:02:52.6]} 9. Be3 {[%clk 0:03:03.6]} 9... Be7 {[%clk
0:02:42.1]} 10. O-O {[%clk 0:02:56.3]} 10... Nce5 {[%clk 0:02:40.2]} 11. b3
{[%clk 0:02:56.4]} 11... Ng6 {[%clk 0:02:31.4]} 12. f4 {[%clk 0:02:53.9]} 12...
Nh4 {[%clk 0:02:23.8]} 13. Bh1 {[%clk 0:02:53.5]} 13... O-O {[%clk 0:02:24.6]}
14. Nce2 {[%clk 0:02:52.1]} 14... Qc7 {[%clk 0:01:53.9]} 15. c4 {[%clk
0:02:51.2]} 15... Re8 {[%clk 0:01:41.6]} 16. Rc1 {[%clk 0:02:50.9]} 16... Bf8
{[%clk 0:01:38.5]} 17. Bf2 {[%clk 0:02:50.8]} 17... Ng6 {[%clk 0:01:39.2]} 18.
f5 {[%clk 0:02:49.9]} 18... Nge5 {[%clk 0:01:39.9]} 19. Nf4 {[%clk 0:02:50]}
19... Nb8 {[%clk 0:01:17.8]} 20. g5 {[%clk 0:02:25.7]} 1-0

[Event "*** Titled Tuesday Blitz"]
[Site "Chess.com"]
[Date "2018.06.05"]
[Round "7"]
[White "pKiLz5Rn9b"]
[Black "PrinceMurad09"]
[Result "1-0"]
[WhiteElo "2633"]
[BlackElo "2420"]
[TimeControl "180+2"]
[EndTime "14:36:51 PDT"]
[Termination "pKiLz5Rn9b won by checkmate"]

1. e4 {[%clk 0:03:01.2]} 1... c5 {[%clk 0:02:06.6]} 2. Nf3 {[%clk 0:02:59.7]}
2... d6 {[%clk 0:02:08.1]} 3. c3 {[%clk 0:02:57.1]} 3... Nf6 {[%clk 0:01:46.5]}
4. Be2 {[%clk 0:02:52.1]} 4... e5 {[%clk 0:01:45.4]} 5. O-O {[%clk 0:02:52.8]}
5... Be7 {[%clk 0:01:45.8]} 6. d4 {[%clk 0:02:53.8]} 6... Qc7 {[%clk 0:01:45]}
7. Nbd2 {[%clk 0:02:54.2]} 7... O-O {[%clk 0:01:45.6]} 8. Bd3 {[%clk 0:02:53.7]}
8... a6 {[%clk 0:01:37.6]} 9. a4 {[%clk 0:02:54.2]} 9... b6 {[%clk 0:01:38.1]}
10. Qe2 {[%clk 0:02:53.6]} 10... Bb7 {[%clk 0:01:39.2]} 11. Rd1 {[%clk
0:02:55.3]} 11... Rd8 {[%clk 0:01:38.7]} 12. Nc4 {[%clk 0:02:55.8]} 12... Nbd7
{[%clk 0:01:34.7]} 13. d5 {[%clk 0:02:57.1]} 13... b5 {[%clk 0:01:32.5]} 14. Ne3
{[%clk 0:02:58.7]} 14... c4 {[%clk 0:01:33.3]} 15. Bc2 {[%clk 0:03:00.3]} 15...
Nc5 {[%clk 0:01:33.6]} 16. Nd2 {[%clk 0:03:00]} 16... g6 {[%clk 0:01:23.9]} 17.
f3 {[%clk 0:03:00.6]} 17... Bf8 {[%clk 0:01:24.8]} 18. Qf2 {[%clk 0:03:01.5]}
18... Bh6 {[%clk 0:01:24.8]} 19. Ndf1 {[%clk 0:03:00.9]} 19... bxa4 {[%clk
0:01:07]} 20. Bxa4 {[%clk 0:03:00.1]} 20... Nd3 {[%clk 0:01:06]} 21. Qh4 {[%clk
0:03:00.1]} 21... Kg7 {[%clk 0:00:59.7]} 22. Qxh6+ {[%clk 0:02:55.8]} 22... Kxh6
{[%clk 0:00:51.7]} 23. Nf5+ {[%clk 0:02:57.1]} 23... Kh5 {[%clk 0:00:53]} 24.
N1g3# {[%clk 0:02:58.7]} 1-0

[Event "*** Titled Tuesday Blitz"]
[Site "Chess.com"]
[Date "2018.06.05"]
[Round "7"]
[White "GMMatamoros"]
[Black "Mr_Penings"]
[Result "1-0"]
[WhiteElo "2516"]
[BlackElo "2437"]
[TimeControl "180+2"]
[EndTime "14:37:01 PDT"]
[Termination "GMMatamoros won by resignation"]

1. Nf3 {[%clk 0:03:01.9]} 1... c5 {[%clk 0:03:00.6]} 2. c4 {[%clk 0:03:00.2]}
2... Nc6 {[%clk 0:03:01.6]} 3. Nc3 {[%clk 0:02:58]} 3... e5 {[%clk 0:03:02.2]}
4. d3 {[%clk 0:02:56.1]} 4... g6 {[%clk 0:03:03.1]} 5. a3 {[%clk 0:02:57]} 5...
Bg7 {[%clk 0:03:03.5]} 6. b4 {[%clk 0:02:56.4]} 6... e4 {[%clk 0:02:49.3]} 7.
Nxe4 {[%clk 0:02:57.2]} 7... Bxa1 {[%clk 0:02:46.8]} 8. Bg5 {[%clk 0:02:58]}
8... Bf6 {[%clk 0:01:44.6]} 9. Nxf6+ {[%clk 0:02:45.5]} 9... Nxf6 {[%clk
0:01:45.5]} 10. Qa1 {[%clk 0:02:47.1]} 10... Nd4 {[%clk 0:01:26.5]} 11. Nxd4
{[%clk 0:02:44.6]} 11... h6 {[%clk 0:01:18.3]} 12. Nc6 {[%clk 0:02:36.6]} 12...
Qb6 {[%clk 0:00:23.8]} 13. Qxf6 {[%clk 0:02:32.1]} 1-0

[Event "*** Titled Tuesday Blitz"]
[Site "Chess.com"]
[Date "2018.06.05"]
[Round "7"]
[White "AlexanderKing"]
[Black "GGX0X0"]
[Result "1-0"]
[WhiteElo "2470"]
[BlackElo "2320"]
[TimeControl "180+2"]
[EndTime "14:37:09 PDT"]
[Termination "AlexanderKing won by resignation"]

1. d4 {[%clk 0:03:01.9]} 1... d5 {[%clk 0:03:00.1]} 2. c4 {[%clk 0:03:03.1]}
2... c6 {[%clk 0:03:01.5]} 3. Nf3 {[%clk 0:03:04.2]} 3... Nf6 {[%clk 0:03:01.9]}
4. e3 {[%clk 0:03:05.6]} 4... e6 {[%clk 0:03:01.4]} 5. b3 {[%clk 0:03:06.3]}
5... Nbd7 {[%clk 0:03:02]} 6. Bb2 {[%clk 0:03:07.3]} 6... Bd6 {[%clk 0:03:03.1]}
7. Bd3 {[%clk 0:03:08.2]} 7... O-O {[%clk 0:03:04]} 8. O-O {[%clk 0:03:09.3]}
8... Qe7 {[%clk 0:03:05.1]} 9. Ne5 {[%clk 0:03:10.5]} 9... a5 {[%clk 0:03:00.2]}
10. f4 {[%clk 0:02:58.4]} 10... Ne4 {[%clk 0:03:00.4]} 11. a4 {[%clk 0:02:07.7]}
11... f6 {[%clk 0:02:52.3]} 12. Nxd7 {[%clk 0:02:00.1]} 12... Bxd7 {[%clk
0:02:52.6]} 13. Ba3 {[%clk 0:01:56.3]} 13... Bxa3 {[%clk 0:02:30.4]} 14. Nxa3
{[%clk 0:01:49.6]} 14... Be8 {[%clk 0:02:27.1]} 15. Bxe4 {[%clk 0:01:34.9]}
15... dxe4 {[%clk 0:02:29]} 16. c5 {[%clk 0:01:36.4]} 16... e5 {[%clk
0:02:16.4]} 17. fxe5 {[%clk 0:01:24.3]} 17... fxe5 {[%clk 0:02:17.2]} 18. Rxf8+
{[%clk 0:01:26.2]} 18... Qxf8 {[%clk 0:02:18.4]} 19. Nc4 {[%clk 0:01:25.7]}
19... exd4 {[%clk 0:02:15.8]} 20. Qxd4 {[%clk 0:01:18.6]} 20... Rd8 {[%clk
0:02:06.9]} 21. Qxd8 {[%clk 0:01:12.4]} 1-0

[Event "*** Titled Tuesday Blitz"]
[Site "Chess.com"]
[Date "2018.06.05"]
[Round "7"]
[White "Slovak_fighter2000"]
[Black "Fianchettoed-Tower"]
[Result "1-0"]
[WhiteElo "2395"]
[BlackElo "2321"]
[TimeControl "180+2"]
[EndTime "14:37:22 PDT"]
[Termination "Slovak_fighter2000 won by resignation"]

1. e4 {[%clk 0:03:01.9]} 1... c5 {[%clk 0:02:59.8]} 2. Nf3 {[%clk 0:03:02.8]}
2... d6 {[%clk 0:03:00.9]} 3. d4 {[%clk 0:03:03.6]} 3... cxd4 {[%clk 0:03:02.5]}
4. Nxd4 {[%clk 0:03:05.5]} 4... Nf6 {[%clk 0:03:03.7]} 5. Nc3 {[%clk 0:03:06.9]}
5... a6 {[%clk 0:03:05.2]} 6. h4 {[%clk 0:03:05.5]} 6... e5 {[%clk 0:02:58.7]}
7. Nb3 {[%clk 0:03:05]} 7... Be6 {[%clk 0:02:59.7]} 8. Bg5 {[%clk 0:03:04.9]}
8... Nbd7 {[%clk 0:03:00.2]} 9. g3 {[%clk 0:03:04.1]} 9... Be7 {[%clk
0:02:59.7]} 10. Bg2 {[%clk 0:03:04.8]} 10... Ng4 {[%clk 0:02:54.2]} 11. Bxe7
{[%clk 0:03:00.3]} 11... Qxe7 {[%clk 0:02:54.5]} 12. Nd5 {[%clk 0:03:01.7]}
12... Bxd5 {[%clk 0:02:54.6]} 13. Qxd5 {[%clk 0:02:53.6]} 13... Nb6 {[%clk
0:02:54.9]} 14. Qd2 {[%clk 0:02:49.3]} 14... O-O {[%clk 0:02:51]} 15. O-O {[%clk
0:02:47.8]} 15... Rac8 {[%clk 0:02:50.2]} 16. Qe2 {[%clk 0:02:41.5]} 16... Nf6
{[%clk 0:02:49.5]} 17. c3 {[%clk 0:02:40.1]} 17... Rfd8 {[%clk 0:02:46.2]} 18.
Rfd1 {[%clk 0:02:39.2]} 18... Nc4 {[%clk 0:02:46.9]} 19. Rab1 {[%clk 0:02:36.3]}
19... b5 {[%clk 0:02:47.8]} 20. Nd2 {[%clk 0:02:36.1]} 20... Nd7 {[%clk
0:02:31.4]} 21. Bh3 {[%clk 0:02:25.2]} 21... Rc7 {[%clk 0:01:53.2]} 22. Nxc4
{[%clk 0:02:18.9]} 22... Rxc4 {[%clk 0:01:55.1]} 23. Bxd7 {[%clk 0:02:17.3]}
23... Rxd7 {[%clk 0:01:55.1]} 24. Rd5 {[%clk 0:02:14.6]} 24... Rdc7 {[%clk
0:01:55.9]} 25. Rbd1 {[%clk 0:02:14.7]} 25... R4c6 {[%clk 0:01:57]} 26. Qd3
{[%clk 0:02:14.5]} 26... Rd7 {[%clk 0:01:58.1]} 27. Kg2 {[%clk 0:02:13.8]} 27...
Qd8 {[%clk 0:01:59.2]} 28. Rxe5 {[%clk 0:01:57.2]} 1-0

[Event "*** Titled Tuesday Blitz"]
[Site "Chess.com"]
[Date "2018.06.05"]
[Round "7"]
[White "Fighterman91"]
[Black "leoo2001"]
[Result "1-0"]
[WhiteElo "2600"]
[BlackElo "2329"]
[TimeControl "180+2"]
[EndTime "14:37:25 PDT"]
[Termination "Fighterman91 won by resignation"]

1. e4 {[%clk 0:03:01.9]} 1... e5 {[%clk 0:03:00.2]} 2. Nf3 {[%clk 0:03:02.7]}
2... Nc6 {[%clk 0:03:01]} 3. d4 {[%clk 0:03:04.3]} 3... exd4 {[%clk 0:03:01.5]}
4. Nxd4 {[%clk 0:03:06.2]} 4... Bb4+ {[%clk 0:03:02.4]} 5. c3 {[%clk 0:03:06.9]}
5... Bc5 {[%clk 0:03:03.8]} 6. Be3 {[%clk 0:03:08.6]} 6... Bb6 {[%clk
0:03:04.9]} 7. Nf5 {[%clk 0:03:10.3]} 7... g6 {[%clk 0:03:04.9]} 8. Bxb6 {[%clk
0:03:10.6]} 8... axb6 {[%clk 0:03:06]} 9. Ne3 {[%clk 0:03:12]} 9... Nf6 {[%clk
0:03:07.4]} 10. f3 {[%clk 0:03:11.9]} 10... O-O {[%clk 0:03:08.7]} 11. c4 {[%clk
0:03:12.7]} 11... d5 {[%clk 0:02:56.3]} 12. cxd5 {[%clk 0:03:06.6]} 12... Nxe4
{[%clk 0:02:55.9]} 13. fxe4 {[%clk 0:03:08]} 13... Qh4+ {[%clk 0:02:55.9]} 14.
Ke2 {[%clk 0:03:09.2]} 14... Qxe4 {[%clk 0:02:50.5]} 15. Nd2 {[%clk 0:03:06.7]}
15... Bg4+ {[%clk 0:02:43.9]} 16. Kf2 {[%clk 0:03:00.4]} 16... Qf4+ {[%clk
0:02:44.5]} 17. Nf3 {[%clk 0:03:01.6]} 17... Ne5 {[%clk 0:02:44.8]} 18. Qd4
{[%clk 0:02:49.7]} 18... Qxd4 {[%clk 0:02:37]} 19. Nxd4 {[%clk 0:02:51.1]} 19...
Rfd8 {[%clk 0:02:37.2]} 20. Nf3 {[%clk 0:02:35.6]} 20... Bxf3 {[%clk 0:02:34.9]}
21. gxf3 {[%clk 0:02:37.5]} 21... c6 {[%clk 0:02:36.3]} 22. f4 {[%clk
0:02:34.2]} 22... Nd7 {[%clk 0:02:36.6]} 23. Bg2 {[%clk 0:02:31.6]} 23... Nc5
{[%clk 0:02:35.5]} 24. Rhd1 {[%clk 0:02:32.3]} 24... Ra4 {[%clk 0:02:34]} 25.
dxc6 {[%clk 0:02:23.6]} 25... Rxd1 {[%clk 0:02:34]} 26. Rxd1 {[%clk 0:02:18.2]}
26... bxc6 {[%clk 0:02:34.9]} 27. Bxc6 {[%clk 0:02:17.4]} 27... Rxa2 {[%clk
0:02:34.2]} 28. Nc4 {[%clk 0:02:07.9]} 28... Na4 {[%clk 0:02:19.4]} 29. Rd2
{[%clk 0:01:49.7]} 29... Kg7 {[%clk 0:02:20.2]} 30. Ke3 {[%clk 0:01:47.8]} 30...
Nc5 {[%clk 0:02:20.7]} 31. b4 {[%clk 0:01:42.4]} 31... Rxd2 {[%clk 0:02:18.4]}
32. Kxd2 {[%clk 0:01:43.8]} 32... Ne6 {[%clk 0:02:18.5]} 33. Nxb6 {[%clk
0:01:44.6]} 33... Nxf4 {[%clk 0:02:20.2]} 34. Nd7 {[%clk 0:01:43.1]} 1-0